Cogmind - Beta 14 @@@ ROGUE MODE // 2025.03.14 @ 18:32:40 Player: mix Result: Destroyed by 8R-AWN with 8R-AWN's Boregun Performance ------------- Evolutions (1) 500 Regions Visited (5) 1000 Robots Destroyed (63) 315 Value Destroyed (1384) 1384 Prototype IDs (25) 500 Alien Tech Used (0) 0 Bonus (204) 204 TOTAL SCORE: 3903 Bonus ------- High Alert Combat Kills 12 Follower Combat Kills 21 Aligned with FarCom 300 Friendly Fire -129 Cogmind --------- Core Integrity 0/400 Matter 169/300 Energy 265/265 System Corruption 0% Temperature Cool (69) Movement Walking (90) Location -9/Exiles Parts ------- > --- POWER (1) -------- Reinforced Ion Engine > --- PROPULSION (2) --- Potential Leg Potential Leg > --- UTILITY (4) ------ Improved Heat Sink Large Storage Unit Targeting Computer Supersonic Drone Bay (0/1) > --- WEAPON (2) ------- Advanced Beam Cannon Improved Light Cannon > --- INVENTORY (15) --- Improved Ion Engine Reinforced Ion Engine Reinforced Ion Engine Reinforced Deuterium Engine Fission Core Fission Core Fission Core Light Treads Light Treads Improved Light Cannon Improved Light Cannon Rocket Launcher Peak State ------------ > --- POWER ------------ Reinforced Ion Engine > --- PROPULSION ------- Potential Leg Potential Leg > --- UTILITY ---------- Improved Heat Sink Large Storage Unit Targeting Computer Supersonic Drone Bay > --- WEAPON ----------- Advanced Beam Cannon Improved Light Cannon > --- INVENTORY -------- Improved Ion Engine Reinforced Ion Engine Reinforced Ion Engine Reinforced Deuterium Engine Fission Core Fission Core Fission Core Light Treads Light Treads Improved Light Cannon Improved Light Cannon Rocket Launcher [Rating: 43] Favorites ----------- Power Reinforced Ion Engine Engine Reinforced Ion Engine Propulsion Light Treads Treads Light Treads Leg Potential Leg Utility Large Storage Unit Device Improved Heat Sink Storage Large Storage Unit Processor Targeting Computer Protection Light Armor Plating Weapon Improved Light Cannon Energy Gun EM Pulse Gun Energy Cannon Advanced Beam Cannon Ballistic Gun Improved Assault Rifle Ballistic Cannon Improved Light Cannon Launcher Rocket Launcher Build | -11 -10 -10 -9 -9 -9 ------- Run | Yrd Mat Min Mat Min Exi Slots Evolved 2 | . . . 2 . . Power . | . . . . . . Propulsion . | . . . . . . Utility 2 | . . . 2 . . Weapon . | . . . . . . Parts Attached 51 | 6 9 3 8 18 7 Power 3 | 1 1 . . . 1 Engine 3 | 1 1 . . . 1 Core . | . . . . . . Reactor . | . . . . . . Propulsion 11 | 2 3 2 . 2 2 Treads 9 | 2 3 2 . 2 . Leg 2 | . . . . . 2 Wheel . | . . . . . . Hover . | . . . . . . Flight . | . . . . . . Utility 11 | 1 2 1 2 3 2 Device 3 | . . . . 1 2 Storage 2 | 1 1 . . . . Processor 1 | . . . . 1 . Hackware . | . . . . . . Protection 5 | . 1 1 2 1 . Artifact . | . . . . . . Weapon 26 | 2 3 . 6 13 2 Energy Gun 1 | 1 . . . . . Energy Cannon 3 | . . . 1 1 1 Ballistic Gun 5 | 1 1 . 2 1 . Ballistic Cannon 10 | . 2 . 2 5 1 Launcher 7 | . . . 1 6 . Special Weapon . | . . . . . . Impact Weapon . | . . . . . . Slashing Weapon . | . . . . . . Piercing Weapon . | . . . . . . Special Melee Weapon . | . . . . . . Unidentified Prototypes 2 | . . . 2 . . Parts Lost 8 | . . . . 5 3 Power 1 | . . . . . 1 Propulsion 2 | . . . . 2 . Utility 3 | . . . . 2 1 Weapon 2 | . . . . 1 1 Highest Loss Streak 3 | . . . . 3 3 To Critical Strikes 1 | . . . . . 1 Average Slot Usage (%) 95 | . 91 100 87 97 99 Engine 12 | . 13 14 11 11 10 Treads 23 | . 27 28 22 22 11 Leg 1 | . . . . . 11 Device 3 | . . . . 9 11 Storage 12 | . 14 14 11 11 11 Processor 3 | . . . . 10 11 Protection 12 | . 7 14 21 10 9 Energy Cannon 2 | . . . . 4 11 Ballistic Gun 3 | . 1 . 9 5 . Ballistic Cannon 18 | . 23 28 12 9 11 Peak Build Rating 43 | 6 12 12 20 20 43 Average Rating 15 | 4 9 12 18 16 30 On Entrance 11 | . 6 12 12 20 17 Naked Turns . | . . . . . . Heaviest Build 56 | 14 41 41 56 55 40 Greatest Support 60 | 40 40 40 40 40 60 Greatest Overweight (x) 1 | . 1 1 1 1 . Average Overweight (x) . | . . 1 1 . . Largest Inventory Capacity 15 | 8 15 15 15 15 15 Average Capacity 14 | 7 13 15 15 15 15 Most Carried 15 | 5 12 15 15 15 15 Average Carried 11 | . 8 13 14 12 13 Final Capacity 15 | 8 15 15 15 15 15 Final Carried 15 | . 11 15 15 11 12 Class Distribution -------------------- 100% | Mutant Dominant Class ---------------- Mutant | -10/Materials Mutant | -10/Mines Mutant | -9/Materials Mutant | -9/Mines Mutant | -9/Exiles Resources | -11 -10 -10 -9 -9 -9 ----------- Run | Yrd Mat Min Mat Min Exi Matter Collected 1710 | 208 500 64 324 533 81 Remotely . | . . . . . . Salvage Created 1365 | 13 641 39 417 255 . Parts 107 | 2 49 7 23 26 . Haulers Intercepted 2 | . . . 2 . . Recyclers Shooed . | . . . . . . Parts Field Recycled . | . . . . . . Retrieved Matter . | . . . . . . Parts Self-Destructed . | . . . . . . Prevented . | . . . . . . Kills | -11 -10 -10 -9 -9 -9 ------- Run | Yrd Mat Min Mat Min Exi Combat Hostiles Destroyed 54 | . 18 2 10 24 . Guns 11 | . 2 . 3 6 . Cannons 33 | . 16 2 5 10 . AOE 10 | . . . 2 8 . Classes Destroyed 12 | 1 7 . 3 1 . Worker 3 | . 1 1 1 . . Builder 1 | . 1 . . . . Tunneler 2 | 1 . 1 . . . Hauler 2 | . . . 2 . . Recycler 1 | . 1 . . . . Mechanic 1 | . 1 . . . . Watcher 4 | . 3 . 1 . . Swarmer 24 | . 6 2 . 16 . Grunt 21 | . 12 . 6 3 . Duelist 1 | . . . 1 . . Sentry 3 | . . . 3 . . Assembled 5 | . . . . 5 . Best Kill Streak 6 | 1 6 2 3 4 . Combat Bots Only 4 | . 3 1 2 4 . Max Kills in Single Turn 4 | 1 2 1 2 4 . Gunslinging . | . . . . . . Exploded 3 | . . . 2 3 . Melee . | . . . . . . Uniques/NPCs Destroyed 1 | . . . . . 1 EX-BIN (-9/Exiles) Combat | -11 -10 -10 -9 -9 -9 -------- Run | Yrd Mat Min Mat Min Exi Hostile Shots Fired 262 | . 64 6 42 93 57 Missed 65 | . 14 2 11 27 11 Damage Taken 2772 | . 492 98 525 804 853 Core 547 | . 88 36 71 110 242 Absorbed by Shields . | . . . . . . Redirected to Shielding 43 | . . . . 16 27 Regen/Repaired (Parts) 90 | . 90 . . . . Core Remaining (%) 75 | 100 . 50 . . . Volleys Fired 169 | 3 53 4 45 39 25 Largest 2 | 2 2 2 2 2 2 Hottest 107 | 60 78 78 78 107 107 Shots Fired 326 | 6 101 8 89 72 50 Gun 84 | 6 17 . 37 24 . Cannon 230 | . 84 8 51 37 50 Launcher 12 | . . . 1 11 . Special . | . . . . . . Kinetic 263 | 3 90 8 88 49 25 Thermal 37 | . . . . 12 25 Explosive 12 | . . . 1 11 . Electromagnetic 14 | 3 11 . . . . Robot Hit Streak 16 | 1 8 9 16 8 7 Robot Miss Streak 6 | 1 6 2 3 4 4 Penetration Max . | . . . . . . Secondary Targets 1 | . 1 . . . . Max Gunslinging Chain 1 | . 1 . . . . Shots Hit Robots 189 | 3 55 3 63 32 33 Core Hits 87 | 1 27 4 17 28 10 Critical Kills . | . . . . . . Critical Parts Destroyed 1 | . . . 1 . . Critical Strikes 4 | . 3 . 1 . . Destroy 1 | . . . 1 . . Blast 3 | . 3 . . . . Melee Attacks . | . . . . . . Impact . | . . . . . . Slashing . | . . . . . . Piercing . | . . . . . . Sneak Attacks . | . . . . . . Combat Hostiles . | . . . . . . Follow-up Attacks . | . . . . . . Damage Inflicted 4617 | 36 1226 79 1355 1244 677 Guns 751 | 36 156 . 401 158 . Cannons 2983 | . 1025 79 830 372 677 Explosions 883 | . 45 . 124 714 . Melee . | . . . . . . Ramming . | . . . . . . Kinetic 3156 | 36 1075 79 1231 386 349 Thermal 517 | . 45 . . 144 328 Explosive 838 | . . . 124 714 . Electromagnetic 106 | . 106 . . . . Impact . | . . . . . . Slashing . | . . . . . . Piercing . | . . . . . . Highest Corruption . | . . . . . . Average Corruption . | . . . . . . Corruption Purged . | . . . . . . Corruption Blocked . | . . . . . . Overload Shots . | . . . . . . Overflow Damage 126 | . 32 . 20 74 . Projectiles 62 | . 17 . 20 25 . Explosions 64 | . 15 . . 49 . Melee . | . . . . . . Knockbacks 25 | . 8 . 6 2 9 Impact . | . . . . . . Kinetic 25 | . 8 . 6 2 9 Secondary . | . . . . . . Self-Inflicted Damage 47 | . . . 18 29 . Shots 2 | . . . 1 1 . Rammed . | . . . . . . Targets Rammed . | . . . . . . Kicked . | . . . . . . Crushed . | . . . . . . Highest Temperature 464 | . 298 41 222 149 464 Average Temperature 94 | . 78 21 77 37 241 Received Heat Transfer 441 | . 195 . 165 81 . Effects 5 | . . . 1 . 4 Shutdowns 1 | . . . . . 1 Energy Bleed 2 | . . . 1 . 1 Matter Decay 1 | . . . . . 1 Short Circuit 1 | . . . . . 1 Siege Activations . | . . . . . . Robots Corrupted . | . . . . . . Combat Hostiles . | . . . . . . Parts Fried . | . . . . . . Impact Corruptions . | . . . . . . Robots Melted . | . . . . . . Combat Hostiles . | . . . . . . Parts Melted . | . . . . . . Heat Transferred 481 | . 50 . . 259 172 Parts Sabotaged . | . . . . . . Parts Stolen . | . . . . . . Parts Stripped . | . . . . . . Power Chain Reactions 1 | . 1 . . . . Alert | -11 -10 -10 -9 -9 -9 ------- Run | Yrd Mat Min Mat Min Exi Peak Influence 551 | 5 256 130 181 551 . Initial 55 | . 3 55 1 14 . Average 126 | 1 133 35 99 289 . Maximum Alert Level 2 | . 1 . . 2 . Low Security (%) 78 | 100 75 100 100 31 . Level 1 19 | . 24 . . 62 . Level 2 1 | . . . . 6 . Level 3 . | . . . . . . Level 4 . | . . . . . . Level 5 . | . . . . . . High Security . | . . . . . . Max Security . | . . . . . . Squads Dispatched 5 | . 3 . 2 . . Investigation 2 | . 2 . . . . Extermination . | . . . . . . Reinforcement 3 | . 1 . 2 . . Assault . | . . . . . . Garrison . | . . . . . . Intercept . | . . . . . . Searches Triggered . | . . . . . . Construction Impeded . | . . . . . . Haulers Reinforced . | . . . . . . Active Scanning Responses . | . . . . . . Cargo Convoy Interrupts . | . . . . . . Stealth | -11 -10 -10 -9 -9 -9 --------- Run | Yrd Mat Min Mat Min Exi Distress Signals 9 | . 4 . 5 . . Communications Jammed . | . . . . . . Distress Signals . | . . . . . . Times Spotted 90 | . 27 6 27 22 8 Peak Tracking Total 9 | . 4 3 5 4 9 Tactical Retreats 1 | . 1 . . . . Traps | -11 -10 -10 -9 -9 -9 ------- Run | Yrd Mat Min Mat Min Exi Traps Triggered 3 | . 3 . . . . Indirectly . | . . . . . . Trap Hack Attempts . | . . . . . . Triggered . | . . . . . . Disarmed . | . . . . . . Reprogrammed . | . . . . . . Reused . | . . . . . . Traps Extracted . | . . . . . . Installed . | . . . . . . Triggered . | . . . . . . Machines | -11 -10 -10 -9 -9 -9 ---------- Run | Yrd Mat Min Mat Min Exi Machines Disabled 12 | . 2 2 1 5 2 Max in Single Turn 2 | . 1 . 1 2 . Machines Repaired . | . . . . . . Machines Dismantled . | . . . . . . Machines Sabotaged . | . . . . . . Overloaded Fab Kills . | . . . . . . Hacking | -11 -10 -10 -9 -9 -9 --------- Run | Yrd Mat Min Mat Min Exi Machines Accessed 6 | . 4 1 . . 1 Terminals 1 | . 1 . . . . Fabricators . | . . . . . . Repair Stations 1 | . 1 . . . . Recycling Units 2 | . 2 . . . . Scanalyzers . | . . . . . . Garrison Access . | . . . . . . Total Hacks 14 | . 12 1 . . 1 Successful 7 | . 5 1 . . 1 Failed 7 | . 7 . . . . Catastrophic 1 | . 1 . . . . Database Lockouts . | . . . . . . Manual 6 | . 5 . . . 1 Terminals 1 | . 1 . . . . Fabricators . | . . . . . . Repair Stations 5 | . 5 . . . . Recycling Units 6 | . 6 . . . . Scanalyzers . | . . . . . . Garrison Access . | . . . . . . Terminal Hacks 2 | . . 1 . . 1 Open Door 1 | . . 1 . . . Derelict Proto ID Bank 1 | . . . . . 1 Fabricator Hacks . | . . . . . . Repair Station Hacks 3 | . 3 . . . . Scan Component 2 | . 2 . . . . Repair 1 | . 1 . . . . Recycling Unit Hacks . | . . . . . . Scanalyzer . | . . . . . . Garrison Access Hacks . | . . . . . . Unauthorized Hacks 2 | . 2 . . . . Terminals . | . . . . . . Fabricators . | . . . . . . Repair Stations 1 | . 1 . . . . Mechanics 1 | . 1 . . . . Recycling Units 1 | . 1 . . . . Reject 1 | . 1 . . . . Scanalyzers . | . . . . . . Garrison Access . | . . . . . . Data Cores Recovered . | . . . . . . Used . | . . . . . . Hacking Detections 3 | . 3 . . . . Full Trace Events 2 | . 2 . . . . Feedback Events . | . . . . . . Feedback Blocked . | . . . . . . Robot Schematics Acquired . | . . . . . . Robots Built . | . . . . . . Authchips . | . . . . . . Time . | . . . . . . Total Robot Build Rating . | . . . . . . Part Schematics Acquired . | . . . . . . Parts Built . | . . . . . . Authchips . | . . . . . . Time . | . . . . . . Total Part Build Rating . | . . . . . . Parts Repaired 1 | . 1 . . . . Time 26 | . 26 . . . . Parts Recycled . | . . . . . . Recycled Matter . | . . . . . . Retrieved Matter . | . . . . . . Retrieved Components . | . . . . . . Parts Scanalyzed . | . . . . . . Part Schematics Acquired . | . . . . . . Parts Damaged . | . . . . . . Bothacking | -11 -10 -10 -9 -9 -9 ------------ Run | Yrd Mat Min Mat Min Exi Used RIF Installer . | . . . . . . Robots Hacked . | . . . . . . Non-combat . | . . . . . . Combat . | . . . . . . Robot Hacks Applied . | . . . . . . Relay Couplers Released . | . . . . . . Fabnet Peak Effective % . | . . . . . . Robots Rewired . | . . . . . . Allies Hacked . | . . . . . . Hacks Repelled . | . . . . . . Allies | -11 -10 -10 -9 -9 -9 -------- Run | Yrd Mat Min Mat Min Exi Total Allies 3 | . . 3 . . . Largest Group 3 | . . 3 2 . . Highest-Rated Group 40 | . . 40 32 . . Highest-Rated Ally 16 | . . 16 16 . . Total Orders 3 | . . . . . 3 STAY 1 | . . . . . 1 EXPLORE 1 | . . . . . 1 RETURN 1 | . . . . . 1 Ally Attacks 46 | . . 17 9 . 20 Total Damage 1145 | . . 154 58 . 933 Kills 12 | . . 3 1 . 8 Allies Corrupted 1 | . . . 1 . . Allies Melted . | . . . . . . Turrets Deployed 3 | . . . . . 3 Intel | -11 -10 -10 -9 -9 -9 ------- Run | Yrd Mat Min Mat Min Exi Robot Analysis Total . | . . . . . . Derelict Logs Recovered 2 | . . 1 . 1 . Drone Launches 2 | . . . . . 2 Drone Recoveries 1 | . . . . . 1 Exploration | -11 -10 -10 -9 -9 -9 ------------- Run | Yrd Mat Min Mat Min Exi Turns Passed 5369 | 72 1224 1533 929 1032 579 Spaces Moved 2300 | 43 461 610 299 544 343 Core 15 | 15 . . . . . Treads 2116 | 28 461 610 299 544 174 Legs 169 | . . . . . 169 Wheels . | . . . . . . Hover . | . . . . . . Flight . | . . . . . . Fastest Speed 50 | 50 160 240 240 160 90 Average Speed 193 | 121 194 240 240 164 125 Slowest Speed 240 | 160 240 240 240 240 160 Overloaded Moves . | . . . . . . Propulsion Burnouts . | . . . . . . Robots Hopped 69 | . . . . . 69 Cave-ins Triggered . | . . . . . . Exploration Rate (%) 64 | 4 77 98 35 80 91 Regions Visited 5 Branch Regions 3 Pre-discovered Areas 1 | . . . . 1 . Known Exits Taken 1 | . . . 1 . . Unknown Exits Taken 4 | 1 1 1 . 1 . Scrap Searched 2 | . . 1 . 1 . Spaces Dug . | . . . . . . Terrain Destroyed 91 | . 5 . 7 78 1 Melee . | . . . . . . Projectile 7 | . 2 . 2 2 1 AOE 84 | . 3 . 5 76 . Terrain Rammed . | . . . . . . Walls Destroyed . | . . . . . . Machines Disabled . | . . . . . . Actions | -11 -10 -10 -9 -9 -9 --------- Run | Yrd Mat Min Mat Min Exi Total 2825 | 56 693 674 422 605 375 Wait 308 | . 143 48 62 3 52 Move 2201 | 42 460 609 298 543 249 Hop 25 | . . . . . 25 Pick Up 49 | 5 22 5 5 2 10 Fast Attach 2 | 1 . . 1 . . Attach 25 | 5 9 . 2 6 3 Detach . | . . . . . . Swap 24 | . . 3 5 12 4 Drop 22 | . 6 5 4 . 7 Fire 169 | 3 53 4 45 39 25 Melee . | . . . . . . Ram . | . . . . . . Kick . | . . . . . . Crush . | . . . . . . Escape Stasis . | . . . . . . Rewire . | . . . . . . Trap . | . . . . . . Miscellaneous . | . . . . . . Route ------- -11/Scrapyard -10/Materials (discovered 4 exits: [*Mat x2] / *Min x2) -10/Mines (discovered 2 exits: [*Mat x2]) -9/Materials (discovered 3 exits: [*Mat] / *Min x2) -9/Mines (discovered 2 exits: [*Mat] / *Exi) -9/Exiles (discovered 2 exits: [*Min x2]) History --------- Turn | Location | Event 7 | -11/Scrapyard | Discovered new exit (range 15) 73 | -11/Scrapyard | Entered Materials 250 | -10/Materials | Discovered new exit (range 16) 302 | -10/Materials | Build established: Mutant 721 | -10/Materials | Discovered new exit (range 5) 765 | -10/Materials | Discovered new exit (range 7) 1017 | -10/Materials | Repaired Lgt. Treads 1046 | -10/Materials | Discovered new exit (range 9) 1297 | -10/Materials | Entered Mines 1597 | -10/Mines | Assisted by bots powering up and referring to "LRC-V3" 1654 | -10/Mines | Met a Derelict who couldn't figure out how to use a Trap Extractor 1791 | -10/Mines | Received a Rocket Launcher from a helpful Derelict 2040 | -10/Mines | Discovered new exit (range 5) 2172 | -10/Mines | Discovered new exit (range 10) 2375 | -10/Mines | Joined a pair of Derelicts in attacking an 0b10 outpost 2830 | -10/Mines | Entered Materials 2830 | -9/Materials | Accompanied by 2 allies 2830 | -9/Materials | Evolved 2 slots: Utility x2 2831 | -9/Materials | Identified exit to Mines 3347 | -9/Materials | Discovered new exit (range 16) 3759 | -9/Materials | Entered Mines 3953 | -9/Mines | Learned location of Recycling (-9) 4099 | -9/Mines | Discovered new exit (range 8) 4204 | -9/Mines | Assembled infested the area 4209 | -9/Mines | Assisted by a Guerilla fighting off Assembled 4362 | -9/Mines | Lost 3 parts (2n1w) 4450 | -9/Mines | Deemed a non-threat by the Exiles lab entrance 4450 | -9/Mines | Discovered new exit (range 5) 4791 | -9/Mines | Entered Exiles 4838 | -9/Exiles | Met 8R-AWN 4860 | -9/Exiles | Met EX-HEX 4903 | -9/Exiles | Met EX-BIN 4922 | -9/Exiles | Aligned with FarCom system 4924 | -9/Exiles | Given EX-Vault access code 4962 | -9/Exiles | Opened EX-Vault 4972 | -9/Exiles | Found Deploy-a-Sentry 4975 | -9/Exiles | Found Deploy-a-Sentry 4979 | -9/Exiles | Found Deploy-a-Sentry 5010 | -9/Exiles | Warned to stay clear of 0b10 Research branches 5021 | -9/Exiles | DAS Turret deployed 5023 | -9/Exiles | DAS Turret deployed 5030 | -9/Exiles | DAS Turret deployed 5071 | -9/Exiles | Found Supersonic Drone Bay 5080 | -9/Exiles | Found Potential Leg 5082 | -9/Exiles | Found Potential Leg 5131 | -9/Exiles | Discovered new exit (range 61) 5138 | -9/Exiles | Discovered new exit (range 55) 5233 | -9/Exiles | Attacked by the Exiles 5233 | -9/Exiles | Allies destroyed EX-BIN 5274 | -9/Exiles | Core integrity fell below 50% 5319 | -9/Exiles | Core integrity fell below 20% 5349 | -9/Exiles | Lost 3 parts (1p1u1w) 5370 | -9/Exiles | Destroyed by 8R-AWN with 8R-AWN's Boregun Last Messages --------------- Targeting Computer broken. Overheating: Short circuit. Penetrated by HV Slug. Trailblazer released from Supersonic Drone Bay. Penetrated by HV Slug. 8R-AWN knocked back. Penetrated by HV Slug. 8R-AWN knocked back. HV Slug penetrates Machine. Penetrated by HV Slug. HV Slug penetrates BIN's Workstation. Penetrated by HV Slug. HV Slug penetrates FarCom Aligner. FarCom Aligner disabled. 8R-AWN knocked back. HV Slug penetrates FarCom Aligner. HV Slug penetrates Wall. 8R-AWN knocked back. HV Slug penetrates FarCom Aligner. Penetrated by HV Slug. Map ----- +----------------------------------------------------+ | ??????????????????# #??"""""#????????????????? | | ??????????????????# ## """#????????????????? | | ??????????????????# X""#????????????????? | | ??????????????????# ## """#????????????????? | | ??????????######??# #??"""""#????????????????? | | ??????????#""""""?# #???#####????????????????? | | ??????????#"""" ## #????????????????????????? | | ??????????#""X" #????????????????????????? | | ??????????#" #????????????????????????? | | ??????????#" ## #????????????????????????? | | ??????????#""""""?# #?#########??????????????? | | ??????????##"###??# #?#"""""""#??????????????? | | ?????????? ??????# #?#""" """#??????????????? | | ?????????""???????# ###"""""""#??????????????? | | ?????????????????## ##;"" """"#??????????????? | | ?????????????????# "" "#??????????????? | | ?????????????????# """#??????????????? | | ?????????????????# !!"""#??????????????? | | ?????????????????#" ! """#??????????????? | | ??########???????#" t % !! ""#??????????????? | | ??# """#???????#" """## ""??????????? | | ??#"" """#???????## """""" ???????????? | | ??#"" #????????# """####???????????? | | ??#"" #????????# n X" """"" ??????????? | | ??#"" "#????????# """ # ""???????????? | | ??# ""?????????# @ """""""#?""???????????? | | ???"" "?????????## % ;;#########??????????????? | | ????# #????????##" ###??????????????????????? | | ??### ###?######"" ;#???????????????????????? | | ###X# #"###"""""" g ##???????????????????????? | | """""" " "" %% ##???###########????????? | | "" """ " % #####"""""""""##???????? | | " " %%% " """ """"##??????? | | %% "" " #??????? | | % " """#??????? | | % " "#??????? | | " "##?????? | | % % ""###???? | | "" " """#???? | | ;##### % "#???? | | ""##????#####""" ##??? | | """##?????????##""" ##?# | | """##???????????#"""" ### | | ""#???????????##"" | | ########??####"""" | | ## ####""" | | """" # | | ## | | ##? | | " ##?? | +----------------------------------------------------+ Best States ------------- Heat Dissipation 42 Energy Generation 12 Energy Capacity 265 Matter Stores 300 Matter Capacity 300 Sight Range 16 Terrain Scan Density 10 Armor Coverage 750 Core Shielding 20 Evasion (%) 57 Targeting Accuracy 5 Recoil Reduction 2 Item Schematics ----------------- None Robot Schematics ------------------ None Fabricated ------------ Nothing Alien Tech Used ----------------- None Achievements -------------- None Challenges ------------ None Game ------ Seed MiniTowerDisintegrator Manual? 0 Play Time 00:30:40 Cumulative 65.8 hours Start 2025.03.14 @ 18:04:28 End 2025.03.14 @ 18:32:40 Sessions 1 Manual Loads 0 Difficulty Rogue Special Mode None Game No. 97 Rogue 83 Adventurer 14 Explorer 0 Win Type - Total 0 Types 0/0/0/0/0/0/0/0/0 Lore% 25 Gallery% 44 Achievement% 41 Wizard Run 0 Options --------- Layout 1 ASCII 0 Keyboard 0 Movement Mouse Keybinds 0 Fullscreen 1 Font 24/Smallcaps Map View 50x35 Zoom Use 8% Tactical HUD 0 Map Filters NONE Filters NONE Steam 1 RUN: 97e18df9-262e-474b-8eaf-c976bc9cb01d